{"text_format":"2","workbook":"xlsx","n_sheets":1,"sheets":["Sheet1"],"not_rendered":{"charts":0,"images":0,"macros":0,"external_links":0,"defined_names":1,"comments":0,"pivot_tables":0},"unopened":[],"bounds":{"document_bytes":16777216,"sheet_cells":100000,"run_cost":"one","rows_first":2000,"rows_last":500,"rows_between":2000,"halvings":0,"cell_chars":16384,"cell_head_chars":4096},"cells_cut":0,"cells_raw":0,"read":"whole","date_system":"1900"}

{"sheet":"Sheet1","index":0,"n_rows":149,"n_cols":6,"rows_kept":149,"cut":false,"hidden":false,"merged":[[2,1,2,5],[1,1,1,5],[145,0,145,4],[117,0,117,4],[77,0,77,4]]}
[]
[null,"Bill of Quantity"]
[null,"ITB055/15 - Rehabilitation Works for Khadija Al-Kubra Girls Secondary School, in Amerly District"]
["No","Item Description","Unit","Qty","Price $","Total $"]
["ت","التفاصيل ","الوحدة","الكمية","السعر ","المبلغ"]
[null,"Construction Work"]
[1,"القيام باعمال قلع البياض القديم والمتضرر نتيجة الرطوبة والبياض من جديد وحسب توجيهات المهندس المشرف"]
[null,"Supply materials, tools & manpower to demolish and remove old damaged gypsum plastering and execute new plastering according to site engineer instructions","M2",450,null,{"$f":"E8*D8","v":0}]
[]
[2,"تجهيز مواد والقيام باعمال قلع اللبخ القديم المتضرر واللبخ من جديد وحسب توجيهات المهندس المشرف "]
[null,"Supply materials, tools & manpower to demolish and remove old damaged cement plastering and execute new plastering according to site engineer instructions","M2",500,null,{"$f":"E11*D11","v":0}]
[]
[3,"تجهيز المواد والمعدات اللازمة والقيام باعمال هدم بناية المرافق الصحي المتضرر والغير الصالح للاستعمال وبناء مرافق صحي جديد للطلاب عدد(10) وكما يلي "]
[null,"Supply materials, tools & manpower to demolish and remove old damaged Toilets and construct new building with 10 toilets as a followings"]
[3.1,"القيام باعمال هدم المرافقات  الصحية القديمة ورفع الانقاض ورميها خارج حدود البلدية وتسوية الارض واعمال التخطيط "]
[null,"Supply materials, tools & manpower to demolish and remove old damaged toilets out site with complete preparation works requirements. The work includes ground planning for new toilets.","LS",1,null,{"$f":"E16*D16","v":0}]
[3.2,"القيام باعمال حفر الاساس بقياس (40عمق*60سم عرض ) والقيام بصب كونكريت مسلح باستخدام حديدي تسليح قطر (12)ملم وحسب توجيهات المهندس المششرف ."]
[null,"Supply materials, tools & manpower for digging foundation base with 60cm width and 40cm thick. The work includes casting reinforced concrete 1:2:4 using  12mm steel reinforcement and according site engineer instructions ","M3",12,null,{"$f":"E18*D18","v":0}]
[3.3,"القيام باعمال البناء تحت البادلو بالبلوك الصلد وحسب المستويات المطلوبة مع التشميع بالسمنت والطلاء بالفلنكوت من الداخل والخارج "]
[null,"Supply materials, tools & manpower for building work under DPC using solid cement blocks to the required levels. The work includes covering by cement mortar & then by flincoat from to sides","M3",18,null,{"$f":"E20*D20","v":0}]
[3.4,"القيام باعمال صب مانع الرطوبة (البادلو) بسمك (15)سم باستخدام السمنت المقاوم للاملاح "]
[null,"Supply materials, tools & manpower for casting concrete of DPC with 15cm thick using sulphate cement.The work includes complete casting requirements ","ML",36,null,{"$f":"E22*D22","v":0}]
[3.5,"القيام باعمال البناء بالبلوك المجوف فوق مستوى مانع الرطوبة بارتفاع (3)م وحسب االمخططات وتوجيهات المهندس المشرف "]
[null,"Supply materials, tools & manpower for building work over DPC using suitable cement blocks to the required levels not less than 3 meter and according to site engineer instructions","M3",23,null,{"$f":"E24*D24","v":0}]
[3.6,"القيام باعمال صب السقف بالكونكريت المسلح بسمك (15) سم  باستخدام نسبة حلط (1:2:4)وصب الرباطات فوق الفتحات والمردات وحسب توجيهات المهندس المشرف "]
[null,"Supply materials, tools & manpower for casting reinforced concrete roof with 15cm thick & mix ratio 1:2:4 and using  12mm steel bar in two layers with  distance 15cm c/c. Price includes casting reinforced concrete for beams over openings & others.The work should done according to site engineer instructions ","M3",22,null,{"$f":"E26*D26","v":0}]
[3.7,"القيام باعمال التغليف بالكاشي السراميك الخاصة بالارضيات من النوعية الجيدة وكذلك الجدران الداخلية بارتفاع (3) وحسب توجيهات المهندس المشرف "]
[null,"Supply materials, tools & manpower to covering grounds using ceramic tiles from a good quality. The work includes covering the internal walls with ceramic tiles to a height 3 meter and according to site engineer instructions","M2",65,null,{"$f":"E28*D28","v":0}]
[3.8,"تجهيز مواد والقيام باعمال التسطيح بقطع الاشتايكر قياس (80*80*4)سم ، ويشمل السعر فرش طبقة من القير السيال وفرش طبقتين متعاكستين من اللباد مع تراب التهوير مع مراعاة اعطاء ميلان مناسب لتصريف مياه الامطار وحسب المواصفات المطلوبة وتوجيهات المهندس المشرف ."]
[null,"Supply materials, tools & manpower to cover concrete roof by cement Shtiger 80x80x4cm The price includes spreading asphalt coats & then two layers of asphaltic insulation layers and suitable layer of river soil under cement shtigers to maintain a suitable slope drainage for rainfall according to site engineer instructions","M2",78,null,{"$f":"E30*D30","v":0}]
[3.9,"تجهيز مواد والقيام باعمال اللبخ للجدران الخارجية مساطر وحسب توجيهات المهندس المشرف "]
[null,"Supply materials, tools & manpower to implement cement plastering for external walls using suitable process according to site engineer instructions","M2",140,null,{"$f":"E32*D32","v":0}]
[3.1,"القيام باعمال التأسيسات الصحية من مد انابيب مغلونة  الى مصدر الماء وحسب القياسات المطلوبة (حار وبارد) مع تجهيز خزان ماء قياس (1.2)م3 عدد(4) مع كافة متطلبات العمل وحسب توجيهات المهندس المشرف "]
[null,"Supply materials, tools & manpower to install sanitary works using galvanized pipes with complete connection with water source and according required measures for cold hot water. The price includes install & supply steel water tank 1.2m3 No.4 with complete accessories and according to site engineer recommendations","LS",1,null,{"$f":"E34*D34","v":0}]
[3.11,"تجهيز مواد والقيام باعمال تركيب قواعد المرافقات الشرقية مع الكلي والسايفون وتأسيس المجاري بالانابيب البلاستكية قياس (4)انج نوع الامل الشريف  وربطها بالسبتتنك "]
[null,"Supply materials, tools & manpower to erect easterian WC with complete connection pipes required for drain sewage , pipes should be PVC 4in from a good origin with complete connections with Septic tank and according to site engineer instructions","NO",10,null,{"$f":"E36*D36","v":0}]
[3.12,"القيام باعمال حفر حوض التعفين (سبتتنك ) قياس (3*4*2.5)م ويشمل السعر البناء بالبلوك الصلد مع صب السقف بالكونكريت المسلح بسمك (15)سم مع تركيب غطاء بلاستيكي للسبتتنك"]
[null,"Supply materials, tools & manpower to build septic tank with dimensions 3x4x2.5m using cement solid blocks and casting its roof by reinforced concrete thick 15cm with erect plastic cover ","LS",1,null,{"$f":"E38*D38","v":0}]
[3.13,"تجهيز مواد والقيام باعمال بناء مغاسل للطلاب مع مصطبة جلوس  بالبلوك مع التغليف بالسيراميك وتأسيس خلاط ماء (حار وبارد) وحسب توجيهات المهندس المشرف"]
[null,"Supply materials, tools & manpower to build suitable wash basin with build ceramic seat. The work includes supplying & installing water mixer as recommended by site engineer & building drawings","LS",1,null,{"$f":"E40*D40","v":0}]
[3.14,"تجهيز مواد والقيام بتأسيس الاعمال الكهربائية باستخدام اسلاك معدنية اردنية الصنع قياس (2.5)ملم2 وتاسيس النقاط الكهربائية المطلوبة للمفرغات والشمعات والكيزر وحسب توجيهات المهندس المشرف ويشمل السعر تجهيز وتركيب سخان عدد (2) قياس (160)لتر مع كافة متطلبات العمل "]
[null,"Supply materials, tools, and manpower to install electrical works required using suitable wires 2.5mm2. The work includes complete electrical points required for evacuation fans, light fittings and water heater according to site engineer instructions. The price includes supply & install two water boiler 160 liter with complete water connection accessories","LS",1,null,{"$f":"E42*D42","v":0}]
[3.15,"تجهيز مواد والقيام بتركيب ابواب حديدية للمرافقات الصحية قياس (80*2.1)م مع تركيب سركي من الداخل فقط ويشمل السعر الصبغ بمانع الصدأ والبوية طبقتين"]
[null,"Supply materials, tools & manpower to erect new steel doors for toilets as mentioned in drawings dimensions 2.1x0.8m with its lock. The price includes painting works by red-led & two layers of oiled paints","NO",10,null,{"$f":"E44*D44","v":0}]
[3.16,"تجهيز مواد والقيام باعمال بناء المماشي بلبلوك الصلد وحسب الارتفاع المطلوب مع الدفن بالسبيس وصب بالكونكريت بسمك (10سم) ويشمل السعر حفر وصب الاساس للممشى بقياس (40*20)سم "]
[null,"Supply materials, tools and manpower to build side walks by cement solid blocks according the required level. The work includes embankment with sub base and casting concrete layer 10cm thick. The price includes digging & casting suitable ground foundations for sidewalks with dimensions 40x20cm according to site engineer instructions","M2",40,null,{"$f":"E46*D46","v":0}]
[3.17,"تجهيز مواد والقيام بتركيب الباب الرئيسي لبناية المرافقات الصحية قياس (2*2.1)م من الحديد كبس وجهين باستخدام بليت سمك (18)ملم مع تركيب الكيلون من النوعية الجيدة ويشمل السعر الصبغ بمانع الصدأ والبوية طبقتين "]
[null,"Supply materials, tools & manpower to install new main steel door for Toilets building with dimensions 2.1x2m using steel plate 18mm with door lock. The price includes complete painting works by red-led paint & two layers of oiled paints","NO",1,null,{"$f":"E48*D48","v":0}]
[3.18,"تجهيز مواد والقيام باعمال تركيب الشبابيك البلاستكية وحسب القياسات المطلوبة ويشمل السعر الكتائب الحديدية وتركيب زجاج قياس (4)ملم"]
[null,"Supply materials, tools & manpower to install PVC windows with suitable measurements with glass 4mm. The price includes steel burglars from outside and complete erection requirements","M2",10,null,{"$f":"E50*D50","v":0}]
[3.19,"تجهيز مواد والقيام باعمال الصبغ الخارجي باستخدام الصبغ التركي الملائم للظروف الجوية وحسب اللون الذي يحدده المهندس المشرف "]
[null,"Supply materials, tools &manpower to paint the external building walls using suitable Turkish plastic paint to prevent environmental conditions with a suitable color according to site engineer instructions","M2",65,null,{"$f":"E52*D52","v":0}]
[4,"تجهيز مواد والمعدات اللازمة والقيام باعمال قلع الاشتايكر القديم المتضرر بشكل كامل والبدء باعمال تطبيق السطح بقطع الاشتايكر الجديدة ويشمل السعر التنظيف الجيد للسطح ثم القيام بفرش طقبة من القير السيال ومن ثم فرش طبقتين متعاكستين من اللباد وفرش تراب التهوير الخالي من الشوائب والمواد العضوية ومن ثم تطبيق الاشتايكر قياس (80*80*4)ملم مع مراعاة اعطاء ميلان مناسب لتصريف مياه الامطار وحسب المواصفات الفنية المطلوبة "]
[null,"Supply materials, tools & manpower to remove old & damaged cement tiles and cover concrete roof by cement Shtiger 80x80x4cm The price includes spreading asphalt coats & then two layers of asphaltic insulation layers and suitable layer of river soil under cement shtigers to maintain a suitable slope drainage for rainfall according to site engineer instructions","M2",1500,null,{"$f":"E54*D54","v":0}]
[5,"تجهيز مواد والقيام باعمال صب ساحة للاصطفاف الصباحي بسمك (10)سم باستخدام نسبة خلط (1:2:4) ويشمل السعر نصب عمود بقطر (3)انج لسارية العلم  "]
[null,"Supply materials, tools & manpower to cast concrete type 1:2:4 with 10cm thick using BRC gage 63. The price includes install steel column diameter 3in for flag","M2",600,null,{"$f":"E56*D56","v":0}]
[6,"تجهيز مواد والقيام باعمال قلع الابواب القديمة المتضررة والقيام بتركيب ابواب حديد كبس وجهين مع الكيلون ويشمل الصبغ بمانع الصدأ والبوية طبقتين "]
[null,"Supply materials, tools & manpower to remove the old damaged steel doors & install new steel doors with steel plates on two sides with its lock. The work includes painting works by red led paint and  two layers of oiled paint.","NO",20,null,{"$f":"E58*D58","v":0}]
[7,"تجهيز مواد والقيام باعمال أعادة تأهيل المرافق الصحي الخاص بالمدرسين عدد(2) وذلك بقلع المقاعد القديمة والقيام بتركيب قواعد مرافقات شرقية مع الكلي وتاسيس المجاري له وربطها بالسبتتنك باستخدام انابيب  بلاستك نوع الامل الشريف قياس (4انج) وكذلك القيام باعمال تأسيس منظومة الماء الحار والبارد باستخدام انابيب مغلونة وحسب القياسات المطلوبة مع تجهيز وتركيب مغاسل عدد (2) مع كافة الملحقات  وكذلك نصب خزان ماء سعة (1.2)م3 وربطها بمنظومة الماء وحسب توجيهات المهندس المشرف"]
[null,"Supply materials, tools & manpower to rehabilitate Teachers toilets no.2 by changing the old eateries WC by new one with complete drain connections using 4in PVC pipes to connect with septic tank. The work includes water pipes works hot & cold using galvanized pipes with required suitable diameters. The price includes supply & install new washing basin No.2 with water mixer and complete water accessories connections. The work includes supply & install new steel water tank size 1.2m3 with complete water connections.","LS",1,null,{"$f":"E60*D60","v":0}]
[8,"تجهيز مواد والقيام باعمال تصليح الشبابيك المتضررة وتنظيفها وصبغها بالبوية  ثم القيام بتركيب الزجاج قياس (4)ملم مع تركيب مانع ذباب وحسب توجيهات المهندس المشرف "]
[null,"Supply materials, tools & manpower to repair the old steel windows & clean it & painting works using suitable oiled paints & then install 4mm new glass with insect prevent silk according to site engineer instructions. ","NO",106,null,{"$f":"E62*D62","v":0}]
[9,"القيام باعمال قلع مرازيب المياه المتضررة واستبدالها بمرازيب بلاستكية نوع الامل الشريف قياس (4)"]
[null,"Supply materials, tools & manpower to remove the old damager water drain pipes from roof by new PVC 4in pipes with complete fixing connections","ML",180,null,{"$f":"E64*D64","v":0}]
[10,"تحضير المعدات اللازمة والقيام باعمال تنظيف المدرسة من الأعشاب الضارة والانقاض والاوساخ ورميها خارج حدود البلدية "]
[null,"Supply materials, tools & manpower for site preparation works of school by cleaning the site from debris, & other damaged materials & handling out of municipality borders.","LS",1,null,{"$f":"E66*D66","v":0}]
[11,"تجهيز مواد والقيام باعمال صبغ المدرسة من الخارج باستخدام الصبغ المقاوم للظروف الجوية تركي المنشأ طبقتين على الاقل وحسب اللون الذي يحدده المهندس المشرف "]
[null,"Supply materials, tools &manpower to paint the external building walls using suitable Turkish plastic paint to prevent environmental conditions with a suitable color according to site engineer instructions","M2",2500,null,{"$f":"E68*D68","v":0}]
[12,"تجهيز مواد والقيام باعمال صبخ الجدران الداخلية والسقوف بالبنتلايت ومن النوعية الجيدة تركي المنشأ"]
[null,"Supply materials, tools &manpower to paint the eternal building walls using suitable Turkish emulsion paints with a suitable color according to site engineer instructions","M2",3600,null,{"$f":"E70*D70","v":0}]
[13,"تجهيز مواد والقيام باعمال تركيب سقف ثانوي (كوستك) لغرفة المدير والمعاون ويشمل السعر تركيب الانارة بالسقف الثانوي مع كافة متطلبات العمل وحسب توجيهات المهندس المشرف "]
[null,"Supply materials, tools & manpower to install new false ceiling Acrostic type with a good quality for school director room & deputy with complete fixing requirements. The work includes install new ceiling lights with electrical connections.","M2",80,null,{"$f":"E72*D72","v":0}]
[14,"تجهيز مواد والقيام باعمال ايصال الماء الى الحديقة الوسطية وتاسيس نقاط ماء وتركيب حنفية ماء عدد(6) في مساحة الحديقة "]
[null,"Supply materials, tools & manpower to install new water pipes for middle garden with install new 6 water taps","LS",1,null,{"$f":"E74*D74","v":0}]
[15,"القيام باعمال قلع المحجرات المكسورة القديمة وتركيب محجر حديدي وحسب توجيهات المهندس المشرف "]
[null,"Supply materials, tools & manpower to remove the old steel handrails by new one according to site engineer instructions","ML",22,null,{"$f":"E76*D76","v":0}]
[]
[" Sub Total",{"$nulls":4},{"$f":"SUM(F8:F76)","v":0}]
[]
[null,"الأعمال الكهربائية"]
[null,"Electrical Works"]
[16,"تجهيز ونصب وربط وتشغيل الفقرات التالية باستخدام أجواد المواد المتوفرة بالاسواق المحلية وبموافقة المهندس المشرف وكما يلي :"]
[null,"Supply materials, Install, Connect & commission the following electric items using the best available materials & according to site engineer approvals:"]
[16.100000000000001,"نقطة أنارة تشمل نقاط الاضاءة والمراوح والساحبات باستخدام أسلاك مفردة اردني او تركي قياس(1.5)ملم للنقاط وقياس (2.5)ملم2 للمغذيات والارضي بقياس مناسب تعمل بطريقة (سمنس) "]
[null,"Supply materials, Install, connect & commission Lighting points which consist lights, ceiling fans and exhaust fans using Jordanian or Turkish single wires 1.5mm2 diam. For points & 2.5mm2 for source points & earth with suitable wire by Siemens  ","NO",325,null,{"$f":"E85*D85","v":0}]
[16.2,"نقطة مآخذ قدرة (13)امبير بأستخدام اسلاك مفردة (2.5)ملم2وباستخدام سويج بلك سعودي نوع الفا"]
[null,"Supply materials, Install, connect & commission sockets 13 Amp using Jordanian or Turkish single wires 2.5mm2 and install switch plug with good quality and according to site engineer instructions  ","NO",40,null,{"$f":"E87*D87","v":0}]
[16.3,"نقطة مآخذ قدرة (15)امبير بأستخدام اسلاك مفردة (2.5)ملم2وباستخدام سويج بلك سعودي نوع الفا"]
[null,"Supply materials, Install, connect & commission sockets 15 Amp using Jordanian or Turkish single wires 2.5mm2 and install switch plug with good quality and according to site engineer instructions  ","NO",25,null,{"$f":"E89*D89","v":0}]
[16.399999999999999,"نقطة ماخذ قدرة ثلاثة اطوار لاجهزة التبريد نوع سبلت يونت باستخدام اسلاك4 ملم2 (32)امبير "]
[null,"Supply materials, Install, connect & commission electrical sockets for Air-conditioning type split units using 4mm2 wires & switch plugs 32Amp","NO",4,null,{"$f":"E91*D91","v":0}]
[17,"تركيب شمعات فلورسنت"]
[null,"Supply,establish,connect, and commissioning of light point with complete (holder,starter,floresent base, and lump) good equality 4feet single(1x40Wat) using wires (2x1.5)mm2 with lighting key Legrand type ","NO",85,null,{"$f":"E93*D93","v":0}]
[18,"مراوح سقفية من النوعية الجيدة "]
[null,"Supply, establish, connect, and commissioning of ceiling fan , Good quality  type using wires (2x1.5)mm2 and according to Site eng. Instructions","NO",30,null,{"$f":"E95*D95","v":0}]
[19,"تجهيز و تاسيس و ربط و فحص نقاط انارة مزدوجة جدارية  ومن اجود الانواع الموجودة في الاسواق مع مصباح اقتصادي75 واط  باستعمال اسلاك 2×1.5 ملم2 اردني الصنع على ان يكون مفتاح الانارة ليكراند او سعودى اصلى الصنع  وحسب توجيهات المهندس المشرف ."]
[null,"Supply, establish, connect, and commissioning of wall double  lighting point from best quality with economy lump 75Wat using wires (2x1.5)mm2 Jordan type and Legrand lighting key according to Site Eng. Instructions","NO",40,null,{"$f":"E97*D97","v":0}]
[20,"ساحبة هواء حجم 12 انج"]
[null,"Supply, establish, connect, and commissioning of Ventilation Fan 12in best quality according to Site Eng. Instructions","NO",6,null,{"$f":"E99*D99","v":0}]
[21,"لوحة توزيع نهائية ثلاثة اطوار بقاطع دورة رئيسي 100 امبير (36)خط مختلف السعات"]
[null,"Supplying, setting up, checking and electrical distribution board 100 Amp with 36 line 3 phase , high quality selected by supervising committee. ","NO",3,null,{"$f":"E101*D101","v":0}]
[22,"تجهيز ومد وربط القابلوات التالية "]
[null,"Supply Cables as followings: "]
[22.1,"تجهيز ومد وربط قابلو قياس (4*16) من المصدر الى داخل المدرسة "]
[null,"Supply cable size 4x16 mm2 from electrical source to inside school","ML",80,null,{"$f":"E105*D105","v":0}]
[22.2,"قابلوا قياس (2*10)ملم2"]
[null,"Supply cable size 2x10 mm2","ML",46,null,{"$f":"E107*D107","v":0}]
[23,"تجهيز وتركيب بورد رئيسي (M.D.B.) يتضمن ما يلي :قاطع دورة رئيسي ثلاثي الطور سعة (400)امبير عدد1 قاطع دورة فرعي ثلاثي الطور سعة 60 امبير عدد 2 قاطع دورة فرعي احادي الطور سعة 30 امبير  داخل صندوق حديدي مطري بابعاد مناسبة مع لوحة البيانات ثلاث مقاييس للتيار ومقياس للتردد والفولطية مع سويج اختيار ومصابيح اشارة باستعمال باص بار تحمل 500 امبير مع ربط منظومة الارضي "]
[null,"supply, install and test water proof main distribution switch board  (M.D.B) includes: Circuit breaker 3 phase capacity 400 Amp no.1, and Circuit breaker 3 phase capacity 60 Amp no.2, and Circuit breaker one phase capacity 30 Amp, with  Voltage , amper , HZ meter and indicating lamps  with using Bazbar 500 Amp and connect earth system with all accessories and to be selected by the supervision commission.","NO",1,null,{"$f":"E109*D109","v":0}]
[24,"توصيل الكهرباء للمدرسة وذلك باستعمال اسلاك المنيوم بقط 95 ملم2 وحسب توجيهات المهندس المشرف "]
[null,"Supply materials, Install, connect   Aluminum wire 95mm2 to provide electricity to school according to site engineer instructions ","ML",100,null,{"$f":"E111*D111","v":0}]
[25,"تجهيز اعمدة كهربائية ضغط عالي نوع كلفنايز مغلون 11متر ويشمل السعر تثبيت الاعمدة وصبها بالكونكريت وحسي توجيهات المهندس المشرف"]
[null,"Supply materials, tools, and manpower to install distribution overhead electrical line supports using 11m steel galvanized poles. The work includes fixing poles by casting concrete required  according to site engineer instructions.","NO",2,null,{"$f":"E113*D113","v":0}]
[26,"تجهيز ونصب وتشغيل وفحص مكيف هواء سبلت يونت سعة (2)طن نوعية جيدة (تدفئة وتبريد) "]
[null,"Supply, connect, and commissioning of Split air-Conditioning 2 Ton unit, using cable (3x4)mm2, circuit Breaker 45Amp and according to Site eng. instructions ","NO",6,null,{"$f":"E115*D115","v":0}]
[27,"تجهيز ونصب وتركيب وتشغيل مولدة (30)KVمن النوعية الجيدة مع الايصال الكهربائي  الى البورد الرئيسي  باستخدام قابلو (4*16) اخذا بنظر الاعتبار الاحمال الواجب ربطها على المولدة وعمل صبة خرسانية مسلحة بواسطة B.R.C.وقفص حديدي مصبوغ بالبوية مع كل ما يتطلبه العمل "]
[null,"Supply new Diesel Generator 30 KVA from good origin & according to attached technical specifications in Annex A. The work include supply & connect Change over switch 120 Amp 3phase.  The price includes supply & connect cable 4x16mm2 with 40m long. The work includes casting concrete required base thick 20cm & using BRC reinforcement and then supply & install steel shade & box for generator with complete painting requirements according to site engineer instructions   ","NO",1,null,{"$f":"E117*D117","v":0}]
[" Sub Total",{"$nulls":4},{"$f":"SUM(F85:F117)","v":0}]
[]
[null,"أعمال التأثيث"]
[null,"Furniture's Works"]
[28,"القيام بأعمال تجهيز الرحلات المزدوجة للطلاب ومن النوعية الجيدة وحسب المواصفات المعتمدة في الابنية المدرسية"]
[null,"Supply new double student desk with a good quality & according to specifications used by schools building & site engineer approvals ","NO",200,null,{"$f":"E123*D123","v":0}]
[29," تجهيز ميز اجتماع للمدرسين سعة (12) كرسي  من النوعية الجيدة مع الكراسي الخاصة به "]
[null,"Supply new meeting teachers table with a good quality capacity 12 chairs, with a good quality chairs and according to site engineer approvals","NO",1,null,{"$f":"E125*D125","v":0}]
[30,"تجهيز طقم قنفات  مع سيت طبلات تركي المنشأ "]
[null,"Supply new sitting set furniture from Turkish origin with set of small tables 50x50cm according to site engineer approval","NO",3,null,{"$f":"E127*D127","v":0}]
[31,"تجهيز براد ماء  ذو ثلاثة حنفيات حجم كبير للطلاب "]
[null,"Supply electrical water refrigerator with three water taps big size with a good origin & according to site engineer approvals","NO",2,null,{"$f":"E129*D129","v":0}]
[32,"تجهيز براد ماء حوضي مع الفلتر للمدرسيين "]
[null,"Supply electrical stand water refrigerator for teachers rooms with a good origin & according to site engineer approvals","NO",3,null,{"$f":"E131*D131","v":0}]
[33,"تجهيز لوكر حديدي لحفظ الاضابير "]
[null,"Supply new steel cupboards for keeping documentations with a good quality & according to site engineer instructions","NO",6,null,{"$f":"E133*D133","v":0}]
[34,"تجهيز دولاب حديدي نصف مزجج لحفظ الاضابير "]
[null,"Supply new cupboards with mid glassing elevation  for keeping documentations with a good quality & according to site engineer instructions","NO",6,null,{"$f":"E135*D135","v":0}]
[35,"تجهيز مكتبة خشبية قياس (3*2)متر ماليزي المنشأ "]
[null,"Supply new Timber library with dimensions 2x3m for keeping documentations with a good quality & according to site engineer instructions","NO",2,null,{"$f":"E137*D137","v":0}]
[36,"تجهيز ثلاجة نوعية جيدة قياس (16)قدم "]
[null,"Supply new 16 foot refrigerator with good quality and according to site engineer approvals","NO",2,null,{"$f":"E139*D139","v":0}]
[37,"تجهيز جهاز استنساخ نوعية جيدة حجم كبير "]
[null,"Supply new Copying device big size for paper A4 and A3 size with a good quality and according to site engineer approvals ","NO",2,null,{"$f":"E141*D141","v":0}]
[38,"تجهيز قاصة حجم متوسط للادارة لحفظ الاسئلة "]
[null,"Supply steel keeper medium size for school administration room with a good quality and according to site engineer approvals","NO",2,null,{"$f":"E143*D143","v":0}]
[39,"تجهيز وتركيب سبورات زيتية كبيرة الحجم من النوعية الجيدة "]
[null,"Supply Magic boards big size with a good quality and according to site engineer approvals","NO",14,null,{"$f":"E145*D145","v":0}]
[" Sub Total",{"$nulls":4},{"$f":"SUM(F123:F145)","v":0}]
[]
[]
[null,"(كلفة العمل الكلية) Grand Total for BOQ",null,null,null,{"$f":"F146+F118+F78","v":0}]